Cogmind - Beta 16.1 @@@ ROGUE MODE // 2026.03.10 @ 18:55:41 Player: ivanmixo Result: Destroyed by G-47 Trooper with Particle Gun Performance ------------- Evolutions (2) 1000 Regions Visited (5) 1000 Robots Destroyed (70) 350 Value Destroyed (1710) 1710 Prototype IDs (2) 40 Alien Tech Used (0) 0 Bonus (210) 210 TOTAL SCORE: 4310 Bonus ------- High Alert Combat Kills 13 Follower Combat Kills 245 Friendly Fire -48 Cogmind --------- Core Integrity 0/550 Matter 242/300 Energy 450/450 System Corruption 9% Temperature Critical (534) Movement Treading (305) Ox2 Location -8/Storage Parts ------- > --- POWER (3) -------- Deuterium Engine Deuterium Engine Deuterium Engine > --- PROPULSION (2) --- Advanced Treads Advanced Treads > --- UTILITY (3) ------ Huge Storage Unit > --- WEAPON (3) ------- Advanced Beam Cannon High-powered Shotgun (fused) Gauss Rifle > --- INVENTORY (25) --- Ion Engine Light Ion Engine Light Ion Engine Deuterium Engine Deuterium Engine Deuterium Engine Light Nuclear Core Light Nuclear Core Light Nuclear Core Advanced Treads Advanced Treads Advanced Treads Advanced Treads Wheel Wheel Improved Heat Sink Huge Storage Unit Gravity Neutralizer Visual Processing Unit Particle Charger Hardened Medium Armor Plating Improved Heavy Machine Gun Advanced EMP Blaster Advanced EMP Blaster Advanced EMP Blaster Peak State ------------ > --- POWER ------------ Deuterium Engine Deuterium Engine Deuterium Engine > --- PROPULSION ------- Advanced Treads Advanced Treads > --- UTILITY ---------- Huge Storage Unit Heavy Armor Plating > --- WEAPON ----------- Advanced Beam Cannon High-powered Shotgun Gauss Rifle > --- INVENTORY -------- Ion Engine Light Ion Engine Light Ion Engine Deuterium Engine Deuterium Engine Deuterium Engine Light Nuclear Core Light Nuclear Core Light Nuclear Core Advanced Treads Advanced Treads Advanced Treads Advanced Treads Wheel Wheel Improved Heat Sink Huge Storage Unit Gravity Neutralizer Visual Processing Unit Particle Charger Hardened Medium Armor Plating Improved Heavy Machine Gun Advanced EMP Blaster Advanced EMP Blaster Advanced EMP Blaster [Rating: 39] Favorites ----------- Power Deuterium Engine Engine Deuterium Engine Power Core Light Nuclear Core Propulsion Compact Wheel Treads Advanced Treads Wheel Compact Wheel Utility Huge Storage Unit Device Improved Heat Sink Storage Huge Storage Unit Hackware Hacking Suite Protection Heavy Armor Plating Weapon Heavy Particle Cannon Energy Cannon Heavy Particle Cannon Ballistic Gun Gauss Rifle Ballistic Cannon Improved Light Cannon Launcher Mini Grenade Launcher Special Weapon Mining Laser Build | -11 -10 -10 -9 -8 -8 ------- Run | Yrd Mat Min Mat Mat Sto Slots Evolved 4 | . . . 2 2 . Power 2 | . . . 1 1 . Propulsion . | . . . . . . Utility 1 | . . . 1 . . Weapon 1 | . . . . 1 . Parts Attached 62 | 6 1 4 15 28 8 Power 19 | 1 . 1 5 9 3 Engine 17 | 1 . 1 5 7 3 Core 2 | . . . . 2 . Reactor . | . . . . . . Propulsion 15 | 2 . . 2 8 3 Treads 2 | . . . . . 2 Leg . | . . . . . . Wheel 13 | 2 . . 2 8 1 Hover . | . . . . . . Flight . | . . . . . . Utility 9 | 1 1 1 3 3 . Device 4 | . . 1 1 2 . Storage 3 | 1 1 . 1 . . Processor . | . . . . . . Hackware 1 | . . . 1 . . Protection 1 | . . . . 1 . Artifact . | . . . . . . Weapon 19 | 2 . 2 5 8 2 Energy Gun . | . . . . . . Energy Cannon 7 | . . . 3 4 . Ballistic Gun 6 | 2 . . . 2 2 Ballistic Cannon 2 | . . . . 2 . Launcher 1 | . . . 1 . . Special Weapon 3 | . . 2 1 . . Impact Weapon . | . . . . . . Slashing Weapon . | . . . . . . Piercing Weapon . | . . . . . . Special Melee Weapon . | . . . . . . Unidentified Prototypes . | . . . . . . Parts Lost 28 | . . 1 3 23 1 Power 9 | . . . 1 8 . Propulsion 4 | . . . . 4 . Utility 3 | . . . . 2 1 Weapon 12 | . . 1 2 9 . Highest Loss Streak 23 | . . 1 1 23 1 To Critical Strikes 1 | . . . . 1 . Average Backups 20 | 3 9 16 22 20 23 Power 4 | . 1 3 5 3 7 Propulsion 5 | 1 4 5 5 5 6 Utility 3 | . . 1 3 5 5 Weapon 5 | . 4 6 7 6 3 Tool/Special . | . . . . . . Unused Backups 50 | . . . 13 10 27 Power 13 | . . . 3 1 9 Propulsion 12 | . . . 4 . 8 Utility 8 | . . . . 3 5 Weapon 17 | . . . 6 6 5 Tool/Special . | . . . . . . Average Slot Usage (%) 94 | . 94 99 97 90 89 Engine 20 | . 14 14 21 23 25 Treads 1 | . . . . . 7 Wheel 19 | . 28 28 22 16 10 Device 7 | . . 10 11 8 . Storage 12 | . 22 17 11 9 9 Hackware 4 | . . . 8 6 . Protection 2 | . . . . 1 9 Energy Cannon 10 | . . . 12 19 8 Ballistic Gun 6 | . 28 5 . 1 17 Ballistic Cannon 1 | . . . . 3 . Special Weapon 7 | . . 22 8 . . Peak Build Rating 39 | 6 8 11 27 31 39 Average Rating 22 | 5 7 9 24 26 33 On Entrance 11 | . 6 8 11 26 18 Avg Prop Armor Cover (%) . | . . . . . . Naked Turns . | . . . . . . Heaviest Build 133 | 11 91 93 112 125 133 Greatest Support 44 | 32 32 32 32 32 44 Greatest Overweight (x) 9 | . 2 2 5 9 6 Average Overweight (x) 3 | . 1 2 4 4 5 Largest Inventory Capacity 25 | 8 25 25 25 25 25 Average Capacity 24 | 7 19 25 25 25 25 Most Carried 25 | 6 11 20 25 25 25 Average Carried 20 | 3 9 16 24 21 23 Final Capacity 25 | 8 25 25 25 25 25 Final Carried 25 | 6 11 20 25 20 25 Class Distribution -------------------- 51% | Mutant 22% | Gunner 16% | Scavenger-Tank 7% | Tank Dominant Class ---------------- Mutant | -10/Materials Mutant | -10/Mines Mutant | -9/Materials Gunner | -8/Materials Scavenger-Tank | -8/Storage Resources | -11 -10 -10 -9 -8 -8 ----------- Run | Yrd Mat Min Mat Mat Sto Matter Collected 1293 | 216 . 172 185 482 238 Remotely . | . . . . . . Salvage Created 2308 | . . 339 636 1020 313 Parts 135 | . . 17 31 65 22 Haulers Intercepted 2 | . . . . 1 1 Recyclers Shooed 3 | . . 2 1 . . Parts Field Recycled . | . . . . . . Retrieved Matter . | . . . . . . Parts Self-Destructed . | . . . . . . Prevented . | . . . . . . Parts Restored . | . . . . . . Kills | -11 -10 -10 -9 -8 -8 ------- Run | Yrd Mat Min Mat Mat Sto Combat Hostiles Destroyed 43 | . . 7 12 16 8 Guns 10 | . . 5 . . 5 Cannons 26 | . . 2 6 15 3 AOE 6 | . . . 6 . . Classes Destroyed 13 | . . 4 3 6 . Worker 9 | . . . 1 7 1 Builder 3 | . . . 2 1 . Tunneler 3 | . . 2 1 . . Hauler 2 | . . . . 1 1 Recycler 7 | . . 2 3 2 . Operator 1 | . . . . 1 . Watcher 1 | . . . . 1 . Swarmer 14 | . . 3 4 3 4 Grunt 16 | . . 4 5 4 3 Sentry 9 | . . . 4 4 1 Specialist 1 | . . . . 1 . Hunter 3 | . . . . 3 . Heavy 1 | . . . . 1 . Best Kill Streak 11 | . . 3 11 9 5 Combat Bots Only 6 | . . 3 6 6 5 Max Kills in Single Turn 3 | . . 2 3 2 2 Gunslinging 1 | . . 1 . . . Exploded 2 | . . . 2 . . Melee . | . . . . . . Uniques/NPCs Destroyed . | . . . . . . Combat | -11 -10 -10 -9 -8 -8 -------- Run | Yrd Mat Min Mat Mat Sto Hostile Shots Fired 315 | . 1 40 22 200 52 Missed 88 | . . 10 10 54 14 Hits 227 | . 1 30 12 146 38 Projectile 227 | . 1 30 12 146 38 Critical Strikes 7 | . . 1 1 3 2 Damage Taken 4103 | . 12 406 341 2875 469 Core 811 | . . 155 98 535 23 Absorbed by Shields . | . . . . . . Regen/Repaired (Parts) 460 | . . . 460 . . Core Remaining (%) 71 | 100 . 38 75 . . Volleys Fired 135 | . . 30 22 62 21 Largest 3 | . . 2 2 3 3 Hottest 225 | . . 200 200 225 121 Shots Fired 300 | . . 57 36 154 53 Gun 100 | . . 43 . 20 37 Cannon 176 | . . . 26 134 16 Launcher 5 | . . . 5 . . Special 19 | . . 14 5 . . Kinetic 132 | . . 43 . 52 37 Thermal 163 | . . 14 31 102 16 Explosive 5 | . . . 5 . . Electromagnetic . | . . . . . . Robot Hit Streak 10 | . . 9 10 7 6 Robot Miss Streak 5 | . . 5 3 5 4 Penetration Max 1 | . . . . 1 1 Secondary Targets 2 | . . 2 . . . Max Gunslinging Chain 1 | . . 1 . . . Shots Hit Robots 153 | . . 31 17 81 24 Core Hits 99 | . . 18 23 40 18 Critical Kills 1 | . . . . 1 . Critical Parts Destroyed 1 | . . . . . 1 Critical Strikes 2 | . . . . 1 1 Meltdown 1 | . . . . 1 . Destroy 1 | . . . . . 1 Melee Attacks . | . . . . . . Impact . | . . . . . . Slashing . | . . . . . . Piercing . | . . . . . . Sneak Attacks . | . . . . . . Combat Hostiles . | . . . . . . Follow-up Attacks . | . . . . . . Damage Inflicted 4772 | . . 425 1718 1943 686 Guns 942 | . . 257 . 188 497 Cannons 2337 | . . . 400 1755 182 Explosions 1294 | . . . 1294 . . Melee . | . . . . . . Ramming 7 | . . . . . 7 Kinetic 1348 | . . 257 . 594 497 Thermal 2718 | . . 168 1019 1349 182 Explosive 699 | . . . 699 . . Electromagnetic . | . . . . . . Impact . | . . . . . . Slashing . | . . . . . . Piercing . | . . . . . . Highest Corruption 9 | . . . . 9 9 Average Corruption 9 | . . . . 9 9 Corruption Purged . | . . . . . . Corruption Blocked . | . . . . . . Effects 38 | . . . . 8 30 Message Errors 10 | . . . . 4 6 Matter Fused 9 | . . . . 1 8 Heat Flow Errors 2 | . . . . . 2 Energy Discharges 4 | . . . . 1 3 Parts Rejected 1 | . . . . . 1 Parts Fused 1 | . . . . . 1 Data Loss (minor) 4 | . . . . 1 3 Data Loss (major) 2 | . . . . . 2 Misfires 2 | . . . . 1 1 Alerts 2 | . . . . . 2 Weapon Failures 1 | . . . . . 1 Overload Shots . | . . . . . . Overflow Damage 440 | . . . 422 18 . Projectiles 28 | . . . 10 18 . Explosions 412 | . . . 412 . . Melee . | . . . . . . Knockbacks 2 | . . . . 2 . Impact . | . . . . . . Kinetic 2 | . . . . 2 . Secondary . | . . . . . . Self-Inflicted Damage 178 | . . . 178 . . Shots 3 | . . . 3 . . Rammed 1 | . . . . . 1 Targets Rammed 1 | . . . . . 1 Kicked . | . . . . . . Crushed . | . . . . . . Highest Temperature 516 | . . 166 180 429 516 Average Temperature 121 | . . 51 49 137 139 Received Heat Transfer 708 | . 6 237 78 198 189 Effects 22 | . . . . 11 11 Shutdowns 9 | . . . . 5 4 Energy Bleed 2 | . . . . . 2 Interference 7 | . . . . 5 2 Short Circuit 2 | . . . . 1 1 Damage (major) 2 | . . . . . 2 Siege Activations . | . . . . . . Martial Activations . | . . . . . . Shielding Activations . | . . . . . . Robots Disrupted . | . . . . . . Combat Hostiles . | . . . . . . Robots Corrupted . | . . . . . . Combat Hostiles . | . . . . . . Parts Fried . | . . . . . . Impact Corruptions . | . . . . . . Robots Melted 1 | . . . . 1 . Combat Hostiles 1 | . . . . 1 . Parts Melted 3 | . . . 2 1 . Heat Transferred 3848 | . . 350 992 2183 323 Parts Sabotaged . | . . . . . . Parts Stolen . | . . . . . . Parts Stripped . | . . . . . . Power Chain Reactions . | . . . . . . Alert | -11 -10 -10 -9 -8 -8 ------- Run | Yrd Mat Min Mat Mat Sto Maximum Alert Level 2 | . . . 2 1 . Low Security (%) 79 | 100 100 100 42 80 100 Level 1 10 | . . . 20 19 . Level 2 9 | . . . 37 . . Level 3 . | . . . . . . Level 4 . | . . . . . . Level 5 . | . . . . . . High Security . | . . . . . . Max Security . | . . . . . . Peak Influence 575 | . . 100 575 339 142 Initial 196 | . . . . 196 37 Average 124 | . . 28 269 138 39 Influence Increases 1913 | . . 211 828 621 253 Destroy 0b10 Robot/C 1040 | . . 140 420 320 160 Destroy 0b10 Robot/NC 150 | . . 20 55 65 10 Destroy Leader 292 | . . 30 106 124 32 Allied During Kill 58 | . . . 58 . . Successful Hack 40 | . . . 9 10 21 Disable Machine 180 | . . . 90 60 30 Destroy Structure 108 | . . 6 75 27 . Lose Combat Pursuer 45 | . . 15 15 15 . Influence Decreases 1901 | . . 211 362 999 329 Entered New Map 321 | . . . . 270 51 Time Decay 1205 | . . 201 302 434 268 Lost Part 185 | . . 10 20 145 10 Lost Ally 40 | . . . 40 . . Purge Threat 150 | . . . . 150 . Squads Dispatched 15 | . 1 . 3 4 7 Investigation 7 | . 1 . 2 2 2 Extermination . | . . . . . . Reinforcement 3 | . . . 1 2 . Assault 2 | . . . . . 2 Garrison 3 | . . . . . 3 Intercept . | . . . . . . Searches Triggered . | . . . . . . Construction Impeded 1 | . . . 1 . . Haulers Reinforced . | . . . . . . Active Scanning Responses . | . . . . . . Cargo Convoy Interrupts . | . . . . . . Stealth | -11 -10 -10 -9 -8 -8 --------- Run | Yrd Mat Min Mat Mat Sto Distress Signals 2 | . . . 1 . 1 Communications Jammed . | . . . . . . Distress Signals . | . . . . . . Times Spotted 84 | . 3 7 29 19 26 Peak Tracking Total 10 | . 3 2 5 6 10 Tactical Retreats 3 | . . 1 1 1 . Traps | -11 -10 -10 -9 -8 -8 ------- Run | Yrd Mat Min Mat Mat Sto Traps Triggered 1 | . . . . . 1 Indirectly . | . . . . . . Trap Hack Attempts . | . . . . . . Triggered . | . . . . . . Disarmed . | . . . . . . Reprogrammed . | . . . . . . Reused . | . . . . . . Traps Extracted . | . . . . . . Installed . | . . . . . . Triggered . | . . . . . . Machines | -11 -10 -10 -9 -8 -8 ---------- Run | Yrd Mat Min Mat Mat Sto Machines Disabled 12 | . . . 6 4 2 Max in Single Turn 3 | . . . 3 2 1 Garrison Access 2 | . . . . 1 1 Machines Repaired . | . . . . . . Machines Dismantled . | . . . . . . Machines Sabotaged . | . . . . . . Overloaded Fab Kills . | . . . . . . Hacking | -11 -10 -10 -9 -8 -8 --------- Run | Yrd Mat Min Mat Mat Sto Machines Accessed 14 | . 1 . 5 4 4 Terminals 10 | . 1 . 3 3 3 Fabricators . | . . . . . . Repair Stations 1 | . . . 1 . . Recycling Units . | . . . . . . Scanalyzers 1 | . . . 1 . . Garrison Access 2 | . . . . 1 1 Total Hacks 38 | . 2 . 16 12 8 Successful 23 | . . . 11 9 3 Failed 15 | . 2 . 5 3 5 Catastrophic 1 | . . . . 1 . Database Lockouts . | . . . . . . Manual 10 | . . . 5 2 3 Terminals 26 | . 2 . 8 11 5 Fabricators . | . . . . . . Repair Stations 4 | . . . 4 . . Recycling Units . | . . . . . . Scanalyzers 4 | . . . 4 . . Garrison Access 4 | . . . . 1 3 Terminal Hacks 14 | . . . 3 8 3 Record 3 | . . . 1 2 . Robot Analysis 1 | . . . . 1 . Open Door 3 | . . . . . 3 Unreport Threat 1 | . . . . 1 . Transport Status 1 | . . . . 1 . Investigation Status 3 | . . . 1 2 . Recall Investigation 1 | . . . 1 . . Zone Layout 1 | . . . . 1 . Fabricator Hacks . | . . . . . . Repair Station Hacks 4 | . . . 4 . . Scan Component 2 | . . . 2 . . Repair 2 | . . . 2 . . Recycling Unit Hacks . | . . . . . . Scanalyzer 4 | . . . 4 . . Insert Component 2 | . . . 2 . . Analyze 2 | . . . 2 . . Garrison Access Hacks 1 | . . . . 1 . Seal Access 1 | . . . . 1 . Unauthorized Hacks . | . . . . . . Terminals . | . . . . . . Fabricators . | . . . . . . Repair Stations . | . . . . . . Recycling Units . | . . . . . . Scanalyzers . | . . . . . . Garrison Access . | . . . . . . Data Cores Recovered . | . . . . . . Used . | . . . . . . Hacking Detections 11 | . 1 . 4 3 3 Full Trace Events 5 | . 1 . 1 2 1 Feedback Events . | . . . . . . Feedback Blocked . | . . . . . . Robot Schematics Acquired . | . . . . . . Robots Built . | . . . . . . Authchips . | . . . . . . Time . | . . . . . . Total Robot Build Rating . | . . . . . . Part Schematics Acquired 2 | . . . 2 . . Parts Built . | . . . . . . Authchips . | . . . . . . Time . | . . . . . . Total Part Build Rating . | . . . . . . Part Studies Acquired . | . . . . . . Parts Repaired 2 | . . . 2 . . Time 64 | . . . 64 . . Parts Recycled . | . . . . . . Recycled Matter . | . . . . . . Retrieved Matter . | . . . . . . Retrieved Components . | . . . . . . Parts Scanalyzed 2 | . . . 2 . . Part Schematics Acquired 2 | . . . 2 . . Parts Damaged . | . . . . . . Bothacking | -11 -10 -10 -9 -8 -8 ------------ Run | Yrd Mat Min Mat Mat Sto Used RIF Installer . | . . . . . . Robots Hacked . | . . . . . . Non-combat . | . . . . . . Combat . | . . . . . . Robot Hacks Applied . | . . . . . . Relay Couplers Released 2 | . . . . . 2 Machine Destruction 2 | . . . . . 2 Fabnet Peak Effective % . | . . . . . . Robots Rewired . | . . . . . . Allies Hacked . | . . . . . . Hacks Repelled . | . . . . . . Allies | -11 -10 -10 -9 -8 -8 -------- Run | Yrd Mat Min Mat Mat Sto Total Allies 3 | . . 3 . . . Largest Group 3 | . . 3 3 . . Highest-Rated Group 40 | . . 40 40 . . Highest-Rated Ally 16 | . . 16 16 . . Total Orders . | . . . . . . Ally Attacks 69 | . . . 69 . . Total Damage 725 | . . . 725 . . Kills 13 | . . . 13 . . Allies Corrupted . | . . . . . . Allies Melted . | . . . . . . Intel | -11 -10 -10 -9 -8 -8 ------- Run | Yrd Mat Min Mat Mat Sto Active Infowar (turns) . | . . . . . . Robot Analysis Total 1 | . . . . 1 . Derelict Logs Recovered 2 | . . 2 . . . Drone Launches . | . . . . . . Drone Recoveries . | . . . . . . Exploration | -11 -10 -10 -9 -8 -8 ------------- Run | Yrd Mat Min Mat Mat Sto Turns Passed 3902 | 65 142 806 1024 1120 745 Spaces Moved 1958 | 51 114 501 509 495 288 Core 1 | 1 . . . . . Treads 69 | . . . . . 69 Legs . | . . . . . . Wheels 1888 | 50 114 501 509 495 219 Hover . | . . . . . . Flight . | . . . . . . Fastest Speed 50 | 50 100 130 130 140 155 Average Speed 153 | 99 118 130 150 156 219 Slowest Speed 625 | 100 130 130 160 215 625 Overloaded Moves . | . . . . . . Propulsion Burnouts . | . . . . . . Robots Hopped . | . . . . . . Potential Cave-ins . | . . . . . . Cave-ins Triggered 1 | . . . . 1 . Exploration Rate (%) 38 | 4 23 78 47 25 51 Regions Visited 5 Branch Regions 2 Pre-discovered Areas 1 | . . 1 . . . Known Exits Taken . | . . . . . . Unknown Exits Taken 5 | 1 1 1 1 1 . Scrap Searched 1 | . . 1 . . . Spaces Dug . | . . . . . . Terrain Destroyed 104 | . . 6 74 24 . Melee . | . . . . . . Projectile 38 | . . 6 8 24 . AOE 66 | . . . 66 . . Terrain Rammed . | . . . . . . Walls Destroyed . | . . . . . . Machines Disabled . | . . . . . . Actions | -11 -10 -10 -9 -8 -8 --------- Run | Yrd Mat Min Mat Mat Sto Total 2578 | 62 120 574 730 728 364 Wait 263 | . 1 30 132 90 10 Move 1953 | 50 113 500 508 494 288 Hop . | . . . . . . Pick Up 97 | 6 5 10 29 27 20 Fast Attach 11 | 6 1 . . 3 1 Attach 35 | . . 1 7 23 4 Detach 5 | . . . . 5 . Swap 25 | . . 3 9 9 4 Drop 53 | . . . 23 15 15 Fire 135 | . . 30 22 62 21 Melee . | . . . . . . Ram . | . . . . . . Kick . | . . . . . . Crush 1 | . . . . . 1 Escape Stasis . | . . . . . . Rewire . | . . . . . . Trap . | . . . . . . Miscellaneous . | . . . . . . Route ------- -11/Scrapyard -10/Materials -10/Mines -9/Materials -8/Materials -8/Storage History --------- Turn | Location | Event 26 | -11/Scrapyard | Discovered new exit (range 16) 66 | -11/Scrapyard | Entered Materials 131 | -10/Materials | Discovered new exit (range 5) 208 | -10/Materials | Entered Mines 223 | -10/Mines | Met a Derelict bent on vengeance 312 | -10/Mines | Build established: Mutant 355 | -10/Mines | Core integrity fell below 50% 457 | -10/Mines | Learned location of Storage (-8) 505 | -10/Mines | Discovered new exit (range 8) 508 | -10/Mines | Learned Materials terminal intel 756 | -10/Mines | Assisted by bots powering up and referring to "LRC-V3" 1014 | -10/Mines | Entered Materials 1014 | -9/Materials | Accompanied by 3 allies 1014 | -9/Materials | Evolved 2 slots: Power x1, Utility x1 1015 | -9/Materials | Loaded intel: 12 terminal locations 1751 | -9/Materials | Repaired Deuterium Engine 1934 | -9/Materials | Repaired Huge Storage Unit 1992 | -9/Materials | Discovered new exit (range 16) 2038 | -9/Materials | Entered another Materials area 2038 | -8/Materials | Evolved 2 slots: Power x1, Weapon x1 2335 | -8/Materials | Build established: Gunner 2799 | -8/Materials | Discovered new exit (range 7) 2831 | -8/Materials | Core integrity fell below 50% 2895 | -8/Materials | Crushed by falling debris 2895 | -8/Materials | Core integrity fell below 20% 2956 | -8/Materials | Lost 23 parts (8p4n2u9w) 3158 | -8/Materials | Entered Storage 3326 | -8/Storage | Met 01-MTF 3457 | -8/Storage | Build established: Scavenger-Tank 3608 | -8/Storage | Garrison activated, responded to threat 3901 | -8/Storage | Build established: Tank 3903 | -8/Storage | Destroyed by G-47 Trooper with Particle Gun Last Messages --------------- 03880_ Acquired Prototype Device. 03882_ System corrupted: Substantial component data lost. 03885_ K-01 Serf collects debris. 03889_ G-47 Trooper destroyed. 03892_ Slug penetrates G-47 Trooper. 03895_ Slug penetrates G-50 Soldier. 03895_ G-50 Soldier destroyed. 03897_ Overheating: Energy bleed (-156). 03897_ Critical hit (Burn: +37). 03898_ K-01 Serf collects debris. 03900_ Overheating: Huge Storage Unit damaged (-164). 03900_ Overheating: Hvy. Armor Plating damaged (-42). 03902_ K-01 Serf collects debris. 03903_ Power failure, Deuterium Engine shutdown. 03903_ Deuterium Engine broken. 03903_ Overheating: Short circuit. 03903_ Hvy. Armor Plating destroyed. Map ----- +----------------------------------------------------+ | | | | | | | ?????????????????????????????????????????????????? | | ?????????????????????????????????????????????????? | | ?????????????????????????????????????????????????? | | ?????????????????????????????????????????????????? | | ?????????????????????????????????????????????????? | | ?????????????????????????????????????????????????? | | ?????????????????????????????????????????????????? | | ?????????????????????????????????????????????????? | | ?????????????????????????????????###?????????????? | | ???????????????????????????????? ??????????????? | | ???????????????????????????????? ??????????????? | | ???????????????????????????????? #??????????????? | | ???????????????????????????????? #??????????????? | | ??????????????????????????##+### #??????????????? | | ????????????????????????### +??????????????? | | ????????????????????????? #??????????????? | | ??????????????????????????# " #??????????????? | | ??????????????????????????# !% #??????????????? | | ??????????????????????????# ^[[!! #???????##?????? | | ??????????????????????????# %=! ######## ##????? | | ??????????????????????????# k! ## /// #????? | | ??????????????????????#####lg!! ## /// #????? | | ??????????????????????# !@g%!! ! ## // #????? | | ??????????????????????###T#gY ## !% #????? | | ????????????????????????### =##% #????? | | ??????????????????????????# !*a/a #????? | | ??????????????????????######+###+### #????? | | ??????????????????????# # #????? | | ??????????????????????# % # #????? | | ??????????????????????# !! !#####+#####???? | | ??????????????????????# /#??# +???? | | ??????????????????????# ] #??#%! #???? | | ??????????????????????#################=!= #???? | | ?????????????????????????????????####=#[%* +???? | | ?????????????????????????????????# =%%+=[=####???? | | ?????????????????????????????????# ==*#[! #??????? | | ?????????????????????????????????# ==[#*! #??????? | | ?????????????????????????????????###### #??????? | | ??????????????????????????????????????# #??????? | | ?????????????????????????????######???# #??????? | | ?????????????????????????????# ??# #??????? | | ?????????????????????????????#" ?# #####??? | | ?????????????????????????????#T [] # +=] #??? | | ?????????????????????????????#" ]] # % #T###??? | | ?????????????????????????????# ] + ###????? | | ?????????????????????????????# # % #??????? | | ?????????????????????????????# ??# #??????? | +----------------------------------------------------+ Best States ------------- Heat Dissipation 67 Energy Generation 32 Energy Capacity 625 Matter Stores 300 Matter Capacity 300 Sight Range 16 Terrain Scan Density 10 Armor Coverage 600 Evasion (%) 40 Recoil Reduction 2 Offensive Hacking 10 Item Schematics ----------------- Adv. Beam Cannon | -9/Materials | Scanalyzed Imp. Medium Laser | -9/Materials | Scanalyzed Robot Schematics ------------------ None Fabricated ------------ Nothing Repaired ---------- Deuterium Engine | 6% | -9/Materials Huge Storage Unit | 35% | -9/Materials Studied --------- None Alien Tech Used ----------------- None Achievements -------------- Hydra Safety First Challenges ------------ None Game ------ Seed PhaseCommChaingun Manual? 0 Play Time 00:57:31 Cumulative 8.9 hours Start 2026.03.10 @ 17:55:03 End 2026.03.10 @ 18:55:41 Sessions 1 Manual Loads 0 Difficulty Rogue Special Mode None Game No. 17 Rogue 17 Adventurer 0 Explorer 0 Win Type - Total 0 Types 0/0/0/0/0/0/0/0/0/0 Lore% 0 Gallery% 12 Achievement% 9 Wizard Run 0 Options --------- Layout 1 ASCII 0 Keyboard 0 Movement Numpad Keybinds 1 Fullscreen 1 Font 24/Smallcaps Map View 50x35 Zoom Use 0% Tactical HUD 1 Map Filters NONE Filters NONE Steam 1 RUN: 2abaf3cb-9105-4925-afb9-f255f1ee079c